bitfinex/quotes_ETHUSD_20260106
["timestamp","ask_amount","ask_price","bid_price","bid_amount"]
[1767713913715,0.38576839,3269.2,3268.0,0.00918681]
[1767713913908,0.38576839,3269.2,3268.0,3.06908471]
[1767713914231,0.059,3269.5,3268.2,0.00918681]
[1767713914436,0.059,3269.5,3268.4,0.00918681]
[1767713914621,0.059,3269.5,3268.7,0.00918681]
[1767713914931,0.059,3269.5,3268.9,0.00918681]
[1767713915112,0.059,3269.5,3269.1,0.00918681]
[1767713915434,3.05756063,3270.6,3268.9,0.00918681]
[1767713915435,8.44829616,3270.7,3269.2,0.80318681]
[1767713915619,0.84482962,3270.6,3269.4,0.00918681]
[1767713915820,0.84482962,3270.6,3269.5,0.794]
[1767713915821,0.8830489,3270.6,3269.5,0.794]
[1767713916203,0.84482962,3270.6,3269.6,0.00918681]
[1767713916532,0.0382111,3271.3,3269.8,0.00918681]
[1767713916738,0.03820994,3271.4,3270.2,0.00918681]
[1767713916936,0.03820994,3271.4,3269.6,0.00918681]
[1767713917233,0.47588633,3271.4,3270.2,0.00918681]
[1767713917440,0.43767639,3271.4,3270.2,0.00918681]
[1767713917643,0.0382111,3271.3,3269.8,0.00918681]
[1767713917938,0.002,3270.3,3270.1,0.794]
[1767713918738,0.002,3270.3,3269.5,3.05855778]
[1767713918739,0.002,3270.3,3269.0,0.793]
[1767713918910,0.002,3270.3,3268.9,0.793]
[1767713918911,0.04022279,3270.3,3268.9,0.793]
[1767713919104,0.04022279,3270.3,3269.2,3.06803388]
[1767713919319,0.04022279,3270.3,3269.0,0.00918681]
[1767713919320,0.002,3270.3,3269.0,0.00918681]
[1767713919803,0.002,3270.3,3269.3,3.05869487]
[1767713920004,0.002,3270.3,3269.2,3.06803912]
[1767713920211,0.002,3270.3,3269.4,0.00918681]
[1767713920426,3.05726252,3270.9,3269.4,0.00918681]
[1767713920631,0.03821694,3270.8,3269.4,0.00918681]
[1767713921106,0.03821694,3270.8,3269.2,3.06803912]
[1767713921307,1.28193718,3270.7,3268.0,0.00918681]
[1767713921543,1.28193718,3270.7,3268.1,3.05982174]
[1767713921544,1.28193718,3269.7,3268.1,3.05982174]
[1767713921851,1.28193718,3269.5,3268.1,0.793]
[1767713922004,5.39083493,3269.8,3267.6,0.00918681]
[1767713922005,1.28193718,3269.3,3268.2,0.793]
[1767713922443,0.03823331,3269.4,3268.2,0.793]
[1767713922613,1.28193718,3269.3,3268.0,0.793]
[1767713922811,1.28193718,3269.2,3268.1,3.06906869]
[1767713923049,1.28193718,3269.2,3268.5,0.00918681]
[1767713923212,1.28193718,3270.4,3268.7,0.00918681]
[1767713923539,0.03822279,3270.3,3268.7,0.00918681]
[1767713923945,0.03822279,3270.3,3268.3,0.00918681]
[1767713923946,7.39777106,3270.2,3268.4,3.05958796]
[1767713924109,2.0637617,3270.1,3268.5,0.00918681]
[1767713924569,1.28193718,3270.0,3268.3,0.80218681]
[1767713924709,1.32016464,3269.9,3268.5,0.00918681]
[1767713924913,1.32016464,3269.9,3268.3,0.00918681]
[1767713925271,1.32016464,3269.9,3268.0,0.00918681]
[1767713925272,0.799,3269.8,3268.0,0.00918681]
[1767713925419,0.20809372,3269.7,3268.0,3.06910544]
[1767713925744,1.4900309,3269.7,3268.2,0.00918681]
[1767713926053,3.09670907,3269.6,3268.2,0.00918681]
[1767713926263,3.8574781,3269.6,3268.2,3.06894265]
[1767713926557,3.89570907,3269.6,3268.2,3.06894265]
[1767713926761,0.74229375,3269.5,3268.2,3.06895405]
[1767713927454,0.20371975,3269.5,3268.4,0.00918681]
[1767713928552,0.20371975,3269.5,3268.4,0.80218681]
[1767713928928,0.20371975,3269.5,3268.4,3.86178481]
[1767713929165,0.20371975,3269.5,3268.9,0.00918681]
[1767713929465,0.799,3270.4,3268.9,0.00918681]
[1767713929637,0.72965008,3270.3,3268.7,0.80218681]
[1767713929960,0.72965008,3270.3,3268.9,0.00918681]
[1767713930166,0.72965008,3270.3,3269.1,0.00918681]
[1767713930167,0.69142729,3270.3,3269.1,0.00918681]
[1767713930355,0.799,3270.8,3268.9,0.00918681]
[1767713930356,6.15311705,3270.7,3268.9,3.06828895]
[1767713930664,6.15311705,3270.7,3269.1,0.00918681]
[1767713930665,1.28193718,3270.6,3269.1,0.00918681]
[1767713930863,0.03822045,3270.5,3269.1,0.00918681]
[1767713931053,0.03822045,3270.5,3269.1,0.31693439]
[1767713931257,0.002,3270.3,3269.1,0.31693439]
[1767713931458,0.002,3270.3,3268.7,0.001]
[1767713931635,1.28193718,3270.1,3268.7,0.001]
[1767713931837,1.32016347,3270.0,3268.7,0.001]
[1767713932134,9.17459247,3269.9,3268.7,0.001]
[1767713932361,1.32016581,3269.8,3268.0,0.80218681]
[1767713932570,1.28193718,3269.6,3268.0,0.00918681]
[1767713932856,1.28193718,3269.6,3268.0,3.06915171]
[1767713932857,0.03823214,3269.5,3268.0,3.06915171]
[1767713933352,0.03823214,3269.5,3268.0,0.00918681]
[1767713933562,0.03823214,3269.5,3268.0,3.06915812]
[1767713933852,0.03823214,3269.5,3267.7,0.00918681]
[1767713934045,6.11733038,3269.4,3267.9,0.00918681]
[1767713934233,6.11733038,3269.4,3267.8,0.793]
[1767713934234,0.03823448,3269.3,3267.8,0.793]
[1767713934435,0.03823448,3269.3,3267.7,3.06018606]
[1767713934652,0.03823448,3269.3,3268.0,0.00918681]
[1767713934840,0.03823448,3269.3,3267.9,6.12012438]
[1767713935041,3.89573157,3269.6,3268.3,0.00918681]
[1767713935259,3.89573157,3269.6,3268.1,0.00918681]
[1767713935260,6.95423217,3269.6,3268.1,0.00918681]
[1767713935431,6.95423217,3269.6,3268.2,0.793]
[1767713935432,6.9160012,3269.6,3268.2,0.793]
[1767713935647,0.69160012,3269.5,3268.3,0.00918681]
[1767713936165,0.69160012,3269.5,3268.3,3.06881788]
[1767713936366,3.75017709,3269.5,3268.2,0.793]
[1767713936667,0.03823331,3269.4,3268.1,3.86206783]
[1767713936832,0.03823331,3269.4,3268.2,0.00918681]
[1767713937038,0.03823331,3269.4,3268.1,0.793]
[1767713937364,0.76460063,3269.4,3267.6,3.06028356]
[1767713937663,0.80283394,3269.4,3267.5,3.06959809]
[1767713937964,0.80283394,3269.4,3267.8,0.00918681]
[1767713938142,0.69200068,3269.3,3267.8,3.06926288]
[1767713938347,3.05857164,3269.5,3267.8,3.06007607]
[1767713938604,6.15544643,3269.5,3267.8,3.06007607]
[1767713939438,6.15544643,3269.5,3267.8,6.12023887]
[1767713939757,0.03823214,3269.5,3267.9,0.03060069]
[1767713940271,9.21401144,3269.5,3267.5,0.00918681]
[1767713940476,0.38957182,3269.4,3267.6,0.793]
[1767713940772,0.03823448,3269.3,3267.7,3.06024865]
[1767713940946,0.03823448,3269.3,3267.9,3.06002329]
[1767713941846,3.85691694,3270.2,3268.1,1.27628184]
[1767713942069,1.27617674,3270.0,3268.2,0.80218681]
[1767713942272,6.11658204,3269.8,3268.1,0.793]
[1767713942472,0.0382298,3269.7,3268.4,0.00918681]
[1767713942641,0.002,3270.3,3268.4,0.00918681]
[1767713942642,0.03822629,3270.0,3268.6,0.00918681]
[1767713942840,1.31440303,3270.0,3268.1,0.00918681]
[1767713943042,1.27617674,3269.9,3268.1,1.41510388]
[1767713943267,0.83722863,3269.8,3268.1,1.40591707]
[1767713943785,2.11340537,3269.8,3267.6,0.00918681]
[1767713944075,3.217,3269.4,3266.9,0.00918681]
[1767713944388,10.45329512,3269.0,3267.1,0.00918681]
[1767713944583,2.16602951,3268.9,3267.3,0.00918681]
[1767713944772,2.16602951,3268.9,3268.5,0.001]
[1767713945073,2.16602951,3268.9,3267.3,0.00918681]
[1767713945298,0.83723916,3268.9,3267.3,0.00918681]
[1767713945502,1.27617674,3268.8,3267.0,0.793]
[1767713945784,1.27617674,3268.8,3266.7,3.06119325]
[1767713945785,1.31441824,3268.7,3266.9,0.793]
[1767713945946,1.27617674,3268.7,3266.9,0.793]
[1767713946142,6.11882762,3268.6,3266.9,3.06100584]
[1767713946456,0.73950044,3268.5,3267.0,0.69548186]
[1767713946656,0.77774428,3268.5,3267.0,0.69548186]
[1767713947187,0.77774428,3268.5,3266.9,0.00918681]
[1767713947383,0.73950044,3268.5,3266.9,0.00918681]
[1767713947790,0.73950044,3268.5,3267.1,0.00918681]
[1767713947791,0.77774428,3268.5,3267.1,0.00918681]
[1767713948370,6.8969149,3268.5,3266.9,0.793]
[1767713948571,6.8969149,3268.5,3266.9,3.06098949]
[1767713948572,0.68969149,3268.4,3266.9,3.06098949]
[1767713948772,0.03824618,3268.3,3266.7,0.00918681]
[1767713948943,0.03824618,3268.3,3266.8,0.793]
[1767713949271,0.03824618,3268.3,3266.6,1.26709503]
[1767713949272,0.03824618,3268.3,3266.6,3.06120187]
[1767713949463,0.03824618,3268.3,3266.5,0.793]
[1767713949464,0.03824618,3268.3,3266.7,0.38542019]
[1767713949776,0.03824618,3268.3,3266.7,3.06113188]
[1767713950159,0.03824618,3268.3,3266.5,3.86354207]
[1767713950160,1.27617674,3268.3,3266.0,1.26709503]
[1767713950359,0.64778767,3268.4,3266.0,2.06009503]
[1767713950360,1.27617674,3268.0,3266.0,2.06009503]
[1767713950592,3.217,3268.1,3266.0,0.793]
[1767713950593,1.27617674,3267.8,3266.0,0.793]
[1767713950760,1.27617674,3267.8,3266.0,3.85483977]
[1767713950961,1.27617674,3267.8,3266.0,6.91668912]
[1767713951296,1.27617674,3267.8,3266.1,0.00918681]
[1767713951492,0.799,3267.7,3266.3,0.00918681]
[1767713951796,0.99265765,3268.0,3266.0,3.06183977]
[1767713951797,1.27617674,3267.5,3266.0,3.06183977]
[1767713951968,1.27617674,3267.5,3266.0,6.12368912]
[1767713952491,1.27617674,3267.5,3265.8,3.85503252]
[1767713952492,1.27617674,3267.4,3265.9,6.13307301]
[1767713952707,1.27617674,3267.4,3265.9,6.1238862]
[1767713952864,1.27617674,3267.4,3264.1,2.7247795]
[1767713952865,1.27617674,3267.4,3264.6,1.27628184]
[1767713953058,12.24182692,3267.5,3264.8,1.26709503]
[1767713953059,1.27617674,3267.2,3264.8,1.26709503]
[1767713953272,1.27617674,3267.2,3264.7,0.00918681]
[1767713953273,1.27617674,3267.2,3265.1,1.27628184]
[1767713953635,0.799,3267.4,3265.7,0.00918681]
[1767713953798,0.799,3267.4,3266.0,0.00918681]
[1767713954004,3.06006915,3267.9,3266.5,0.00918681]
[1767713954163,0.059,3268.0,3266.5,0.794]
[1767713954360,0.059,3268.0,3266.9,0.00918681]
[1767713954565,3.22618681,3269.9,3267.3,0.00918681]
[1767713954805,6.21236864,3270.2,3267.3,0.00918681]
[1767713954806,6.11658204,3269.8,3267.8,0.00918681]
[1767713955096,3.85729102,3269.8,3268.0,0.00918681]
[1767713955260,6.91558204,3269.8,3268.0,0.00918681]
[1767713955594,0.6915582,3269.7,3268.0,0.00918681]
[1767713955780,0.6915582,3269.7,3268.2,0.00918681]
[1767713955986,0.6915582,3269.7,3268.0,0.00918681]
[1767713956379,3.0584781,3269.6,3268.2,3.06893253]
[1767713956580,3.0584781,3269.6,3268.2,0.00918681]
[1767713956893,0.6808447,3269.5,3268.2,3.06895371]
[1767713957065,0.6808447,3269.5,3268.2,6.92274197]
[1767713957270,3.05828674,3269.9,3268.5,0.00918681]
[1767713957471,1.42115555,3270.0,3268.7,0.00918681]
[1767713957797,0.799,3270.0,3268.7,0.00918681]
[1767713958008,3.85712882,3270.0,3268.7,0.00918681]
[1767713958486,0.799,3270.0,3268.7,3.06848546]
[1767713958693,0.002,3270.2,3268.9,0.00918681]
[1767713959079,3.05992408,3270.2,3268.9,0.00918681]
[1767713959278,0.30619241,3270.1,3268.9,0.00918681]
[1767713959800,0.002,3270.2,3269.1,0.00918681]
[1767713960297,0.002,3270.2,3269.3,0.00918681]
[1767713960597,0.002,3270.2,3269.1,0.00918681]
[1767713960598,0.002,3270.2,3269.4,0.793]
[1767713960816,0.002,3270.2,3269.3,0.793]
[1767713961304,0.002,3270.2,3269.4,0.00918681]
[1767713961504,0.002,3270.2,3269.6,0.00918681]
[1767713962476,0.002,3270.2,3269.8,0.00918681]
[1767713962696,0.002,3270.5,3270.0,0.00918681]
[1767713963013,0.002,3270.5,3269.8,3.06746037]
[1767713963193,0.002,3270.5,3269.9,0.38604604]
[1767713963698,0.002,3270.5,3269.4,0.00918681]
[1767713963699,0.002,3270.5,3268.7,1.27628184]
[1767713963911,0.002,3270.5,3269.2,0.793]
[1767713963912,0.06252016,3269.9,3269.2,0.793]
[1767713964205,0.06252016,3269.9,3269.0,3.05903775]
[1767713964503,0.06252016,3269.9,3268.8,0.00918681]
[1767713964809,0.002,3270.5,3269.8,0.00918681]
[1767713965007,0.002,3270.5,3269.6,0.00918681]
[1767713965212,0.002,3270.5,3269.7,0.793]
[1767713965771,0.002,3270.5,3269.8,0.00918681]
[1767713966803,0.002,3270.5,3269.9,0.793]
[1767713968407,0.002,3270.5,3269.4,3.06776669]
[1767713968706,0.002,3270.5,3269.8,3.05828412]
[1767713968902,0.002,3270.5,3269.7,3.05838357]
[1767713969106,0.002,3270.5,3269.7,6.11676813]
[1767713969410,0.002,3270.5,3269.8,0.793]
[1767713969980,0.002,3270.5,3269.8,0.80218681]
[1767713970182,0.002,3270.5,3269.9,0.69189549]
[1767713970707,0.002,3270.5,3270.0,0.793]
[1767713972412,0.06019958,3271.0,3270.0,0.793]
[1767713972413,0.06019958,3271.0,3270.0,3.85108523]
[1767713972911,0.06019958,3271.0,3270.0,3.85108853]
[1767713973217,0.06019958,3271.0,3270.0,0.793]
[1767713973715,0.06019958,3271.0,3270.1,3.08859055]
[1767713973919,0.06019958,3271.0,3270.1,3.05801045]
[1767713974918,0.06019958,3271.0,3269.7,1.36627563]
[1767713975127,1.38803083,3270.9,3269.7,0.001]
[1767713976012,1.38803083,3270.9,3269.2,0.793]
[1767713976230,9.23176664,3271.0,3269.2,0.38519365]
[1767713976231,1.38803083,3270.7,3269.2,0.38519365]
[1767713976397,2.18703083,3270.7,3269.0,0.793]
[1767713976719,1.38803083,3270.6,3269.0,3.85201484]
[1767713976881,6.33397596,3270.5,3269.1,0.793]
[1767713977084,7.72200679,3270.5,3269.1,0.793]
[1767713977588,1.38803083,3270.4,3269.0,0.69204136]
[1767713977786,1.38803083,3270.4,3268.8,0.793]
[1767713978640,1.38803083,3270.4,3268.3,0.00918681]
[1767713978793,1.38803083,3270.2,3268.4,0.793]
[1767713978997,2.44418094,3270.1,3268.4,4.23873933]
[1767713979492,1.38803083,3270.0,3268.4,1.17918945]
[1767713979710,1.38803083,3270.0,3268.2,3.05976177]
[1767713979910,1.38803083,3270.0,3268.3,0.793]
[1767713979911,1.38803083,3269.9,3268.3,0.793]
[1767713980113,1.38803083,3269.9,3268.0,0.00918681]
[1767713980313,1.38803083,3269.9,3268.1,0.793]
[1767713980513,0.799,3270.0,3267.5,0.00918681]
[1767713980514,1.38803083,3269.7,3267.5,0.00918681]
[1767713980830,0.21870308,3269.8,3267.6,0.00918681]
[1767713980831,1.38803083,3269.5,3267.6,0.00918681]
[1767713981013,2.18703083,3269.4,3267.7,0.793]
[1767713981391,2.18703083,3269.4,3267.7,0.80218681]
[1767713981992,2.18703083,3269.4,3267.9,0.00918681]
[1767713981993,0.799,3269.4,3267.9,0.00918681]
[1767713982202,1.18474781,3269.4,3268.0,0.03059975]
[1767713982423,1.18474781,3269.4,3267.9,0.00918681]
[1767713982621,1.18474781,3269.4,3268.6,0.001]
[1767713982794,1.18474781,3269.4,3268.0,0.793]
[1767713982995,6.1175175,3269.3,3268.0,0.793]
[1767713983222,0.73022653,3269.2,3267.8,3.06009898]
[1767713983425,0.73022653,3269.2,3267.9,0.793]
[1767713983931,0.73022653,3269.2,3268.0,3.05994384]
[1767713984223,0.73022653,3269.2,3267.7,0.00918681]
[1767713984406,0.73022653,3269.2,3267.9,3.85306577]
[1767713984605,0.73022653,3269.2,3267.9,1.48524677]
[1767713984606,1.38803083,3269.1,3267.9,1.48524677]
[1767713985026,1.38803083,3268.9,3267.9,1.48524677]
[1767713985322,1.38803083,3269.1,3267.9,3.85305918]
[1767713985522,1.38803083,3269.1,3267.3,0.00918681]
[1767713985728,1.38803083,3269.1,3267.5,0.00918681]
[1767713986294,1.38803083,3269.1,3267.6,3.06027996]
[1767713986514,1.38803083,3269.1,3267.5,0.00918681]
[1767713986515,1.38803083,3269.1,3267.5,3.06040917]
[1767713986721,1.38803083,3268.9,3267.6,0.38534092]
[1767713987097,1.38803083,3268.9,3267.5,3.85343497]
[1767713987098,1.38803083,3268.7,3267.5,3.85343497]
[1767713987506,1.38803083,3268.7,3267.5,6.91387873]
[1767713987707,1.38803083,3268.7,3267.5,3.85343497]
[1767713987907,3.05914767,3268.9,3267.5,3.85343497]
[1767713988117,3.05914767,3268.9,3267.3,0.03979312]
[1767713988118,1.38803083,3268.8,3267.2,3.0607234]
[1767713988316,1.38803083,3268.7,3267.1,0.3079147]
[1767713988530,1.38803083,3268.7,3267.1,3.3687078]
[1767713988834,1.10491477,3268.8,3266.7,3.85413719]
[1767713988835,1.38803083,3268.5,3266.7,3.85413719]
[1767713989137,1.38803083,3268.3,3266.7,3.85413719]
[1767713989336,1.38803083,3268.1,3266.7,3.85413719]
[1767713989634,1.38803083,3268.1,3266.7,0.793]
[1767713989816,1.60673391,3268.0,3266.7,0.793]
[1767713990009,0.21870308,3268.0,3266.7,0.793]
[1767713990211,0.21870308,3268.0,3266.4,1.39589037]
[1767713990212,1.38803083,3268.1,3266.6,0.793]
[1767713990840,1.38803083,3268.1,3266.7,6.12237122]
[1767713991020,1.38803083,3268.1,3266.7,3.06117797]
[1767713991021,1.38803083,3268.0,3266.7,3.06117797]
[1767713991340,1.38803083,3268.0,3266.8,0.3854178]
[1767713991750,3.05991489,3268.1,3266.8,0.3854178]
[1767713991914,6.11982978,3268.1,3266.8,0.3854178]
[1767713992342,1.38803083,3268.0,3266.8,0.3854178]
[1767713992513,1.38803083,3268.0,3266.6,3.06127348]
[1767713993120,6.1201383,3267.9,3266.5,3.06138068]
[1767713993324,3.06006915,3267.9,3266.5,3.06138068]
[1767713993827,4.44802678,3268.0,3266.5,3.06138068]
[1767713993828,1.38803083,3268.0,3266.5,6.12276136]
[1767713994148,3.06006915,3267.9,3266.6,0.69157614]
[1767713994363,7.50816913,3267.9,3266.4,3.85444739]
[1767713994846,7.50816913,3267.9,3266.1,0.795]
[1767713995040,7.50816913,3267.9,3266.3,3.06151551]
[1767713995345,7.50816913,3267.9,3266.2,3.06166187]
[1767713995549,7.50816913,3267.9,3266.2,6.12332374]
[1767713995747,1.07868742,3267.8,3266.3,0.69275106]
[1767713996116,1.38803083,3267.7,3267.1,0.001]
[1767713996316,1.38803083,3267.7,3266.1,0.001]
[1767713996317,0.799,3267.6,3266.1,0.001]
[1767713996549,0.799,3267.6,3266.1,3.06274101]
[1767713996927,0.799,3267.6,3266.1,0.001]
[1767713997126,0.21870308,3267.5,3266.1,0.001]
[1767713997435,9.18161229,3267.4,3266.1,0.001]
[1767713997643,6.12107486,3267.4,3266.1,0.001]
[1767713998364,6.12107486,3267.4,3265.0,3.06278527]
[1767713998365,1.35793743,3267.3,3265.0,3.06278527]
[1767713998515,1.35793743,3267.1,3265.0,2e-08]
[1767713998810,1.36000872,3267.2,3265.0,2e-08]
[1767713998811,1.35793743,3266.9,3265.0,2e-08]
[1767713999013,1.35793743,3266.9,3265.0,3.0627801]
[1767713999210,6.92119908,3266.8,3265.0,3.06278106]
[1767713999443,6.92119908,3266.8,3265.1,0.30719679]
[1767713999444,2.49195246,3266.7,3265.1,0.30719679]
[1767714000248,1.13401503,3266.7,3265.3,0.00918681]
[1767714000432,0.21870308,3267.5,3265.7,0.00918681]
[1767714000433,6.12107486,3267.4,3265.7,0.00918681]
[1767714000639,0.799,3267.3,3265.7,0.00918681]
[1767714000815,3.06046165,3267.5,3265.9,0.00918681]
[1767714001015,0.799,3267.4,3265.9,0.00918681]
[1767714001215,0.06019958,3267.6,3266.3,6.12313626]
[1767714001416,0.06019958,3267.6,3266.4,0.65303386]
[1767714001649,0.06019958,3267.6,3266.6,0.00918681]
[1767714001853,0.06019958,3267.6,3266.4,0.61323231]
[1767714002040,1.36382582,3267.5,3265.6,3.06214185]
[1767714002241,1.36382582,3267.5,3265.4,0.794]
[1767714002446,1.36382582,3267.5,3265.1,4.16387866]
[1767714002648,1.36382582,3267.5,3265.1,1.10119679]
[1767714002837,2.24544307,3267.4,3265.6,3.06222175]
[1767714003033,2.81026889,3267.4,3265.6,3.06222175]
[1767714003239,0.799,3267.3,3265.2,0.00918681]
[1767714003543,3.06072477,3267.2,3265.3,6.12498883]
[1767714003745,0.06019958,3267.6,3266.0,0.00918681]
[1767714004054,0.06019958,3267.6,3266.4,0.00918681]
[1767714004223,0.06019958,3267.6,3266.8,0.00918681]
[1767714004423,0.799,3268.1,3267.0,0.00918681]
[1767714004827,0.799,3268.1,3266.8,0.80318681]
[1767714005343,3.05950741,3268.5,3267.1,3.06081846]
[1767714005724,0.799,3268.8,3267.2,0.00918681]
[1767714005957,3.8582732,3268.8,3267.2,0.80318681]
[1767714006193,0.799,3268.8,3267.2,0.80318681]
[1767714006360,3.85825928,3268.8,3267.3,0.69248237]
[1767714006562,3.85825928,3268.8,3267.0,3.85487603]
[1767714006563,11.34060366,3268.8,3267.0,3.85487603]
[1767714006750,8.28134438,3268.8,3267.0,3.85487603]
[1767714007630,1.36382582,3268.7,3266.4,0.00918681]
[1767714007855,1.36382582,3268.7,3266.7,3.85510294]
[1767714008133,1.36382582,3268.7,3266.7,0.794]
[1767714008334,2.49788292,3268.6,3266.8,3.06104695]
[1767714008535,2.49788292,3268.6,3267.1,0.001]
[1767714009533,6.91801482,3268.5,3267.1,0.001]
[1767714009858,3.85850741,3268.5,3267.1,0.001]
[1767714010036,1.1340571,3268.6,3267.2,0.00918681]
[1767714010236,0.799,3268.9,3267.2,1.29045015]
[1767714011042,0.799,3268.9,3267.1,0.001]
[1767714011043,1.36382582,3268.8,3267.1,0.001]
[1767714011638,6.91764042,3268.7,3267.1,0.001]
[1767714011854,1.36382582,3268.6,3267.1,0.001]
[1767714013054,1.36382582,3269.1,3267.1,2.07626334]
[1767714013256,1.36382582,3269.1,3267.2,0.21681314]
[1767714013432,0.799,3269.0,3267.2,0.21681314]
[1767714013636,0.799,3269.0,3267.3,6.1212622]
[1767714013868,3.05913304,3268.9,3267.3,6.1212622]
[1767714014046,0.52219589,3268.9,3267.4,0.64299434]
[1767714014233,0.52219589,3268.9,3267.4,0.63380753]
[1767714014435,1.36382582,3268.8,3267.1,0.001]
[1767714014637,1.36382582,3268.6,3267.1,0.001]
[1767714015164,1.36382582,3268.6,3267.1,3.06181283]
[1767714015352,1.36382582,3268.6,3267.1,3.06181522]
[1767714015556,0.799,3268.5,3267.2,3.06070965]
[1767714015765,0.21628258,3268.4,3267.2,3.67295513]
[1767714016267,0.52219589,3268.9,3267.3,0.0224752]
[1767714016573,0.52219589,3268.9,3267.2,9.80359148]
[1767714016574,1.36382582,3268.8,3267.2,6.74286671]
[1767714016754,1.36382582,3268.8,3267.2,6.73365144]
[1767714017372,1.36382582,3268.8,3267.2,3.67292667]
[1767714017672,1.36382582,3268.8,3267.1,0.001]
[1767714017861,7.48246624,3268.7,3267.1,0.001]
[1767714018241,1.36382582,3268.6,3267.1,0.03160818]
[1767714019049,2.16282582,3268.6,3267.1,0.001]
[1767714019251,1.36382582,3268.5,3267.1,0.001]
[1767714019570,0.799,3268.6,3267.1,0.001]
[1767714019571,1.36382582,3268.3,3267.1,0.001]
[1767714020146,2.16282582,3268.3,3267.1,0.001]
[1767714020879,1.36382582,3268.2,3267.1,0.001]
[1767714021062,1.36382582,3268.2,3265.8,1.28126334]
[1767714021063,1.36382582,3268.2,3265.9,0.00918681]
[1767714021373,1.36382582,3268.2,3266.5,3.06137981]
[1767714021539,9.97815666,3268.3,3266.5,3.06137981]
[1767714021540,2.80399717,3268.1,3266.5,3.06137981]
[1767714021741,2.80399717,3268.1,3265.9,1.28126334]
[1767714021742,1.36382582,3267.9,3265.9,1.28126334]
[1767714021970,1.36382582,3267.9,3266.0,3.06184935]
[1767714022196,1.36382582,3267.9,3266.0,0.03061849]
[1767714022495,1.36382582,3267.8,3265.9,3.06191755]
[1767714022772,1.36382582,3267.6,3265.8,3.06200186]
[1767714022972,1.36382582,3267.6,3265.4,0.794]
[1767714023148,1.36382582,3267.6,3265.4,3.85639423]
[1767714023349,1.37301263,3267.6,3265.0,2e-08]
[1767714023552,1.36382582,3267.4,3265.0,2e-08]
[1767714023947,1.36382582,3267.2,3265.0,2e-08]
[1767714024149,1.34875552,3267.0,3265.0,2e-08]
[1767714024678,0.799,3266.9,3265.0,0.03062789]
[1767714025169,1.36382582,3266.8,3265.0,2e-08]
[1767714025372,0.21628258,3266.7,3265.1,0.61257619]
[1767714026565,3.86028696,3266.6,3265.2,6.12519906]
[1767714026761,3.86028696,3266.6,3265.2,3.06259953]
[1767714027552,6.92157392,3266.6,3265.2,3.06259953]
[1767714028251,0.21628258,3266.7,3265.3,0.03062505]
[1767714028459,0.799,3266.8,3265.5,6.12463634]
[1767714029193,3.3283198,3268.4,3265.6,1.31188558]
[1767714029194,0.00918681,3267.6,3265.6,1.31188558]
[1767714029499,0.799,3267.5,3265.6,1.31188558]
[1767714029798,0.799,3267.4,3265.6,1.31188558]
[1767714030081,1.36382582,3267.6,3265.8,1.29045015]
[1767714030379,0.799,3267.4,3265.9,1.28126334]
[1767714030583,6.1212622,3267.3,3265.7,3.80576495]
[1767714030782,9.1818933,3267.3,3265.7,0.74365219]
[1767714030960,0.99808933,3267.2,3265.5,3.85631658]
[1767714031354,0.99808933,3267.2,3265.4,1.5905858]
[1767714031679,2.35954598,3267.2,3265.4,1.28126334]
[1767714031864,2.35954598,3267.2,3265.5,3.06228229]
[1767714032178,2.35954598,3267.2,3265.6,3.06219938]
[1767714032383,2.35954598,3267.2,3265.6,3.06218333]
[1767714032555,6.12163692,3267.1,3265.5,3.06231817]
[1767714032752,0.84811829,3267.0,3265.6,0.74059202]
[1767714032979,0.84811829,3267.0,3265.7,0.0306213]
[1767714033378,0.799,3266.9,3265.6,0.74059202]
[1767714034090,0.799,3267.0,3265.7,0.0306213]
[1767714034378,6.12147398,3267.2,3265.9,0.001]
[1767714034578,3.0603501,3267.6,3265.9,0.001]
[1767714034785,3.0603501,3267.6,3265.9,0.03161943]
[1767714034786,2.16045665,3267.5,3265.9,0.03161943]
[1767714034981,0.82811569,3267.4,3266.0,0.921773]
[1767714035689,2.16045665,3267.5,3266.0,0.921773]
[1767714035690,1.36145665,3267.5,3266.0,0.921773]
[1767714035988,1.42165623,3268.0,3266.2,0.00918681]
[1767714036282,1.42165623,3268.0,3266.3,2.20094988]
[1767714036690,1.42165623,3268.0,3266.7,9.18357975]
[1767714036691,0.06019958,3268.0,3266.7,9.18357975]
[1767714036884,0.06019958,3268.0,3266.8,0.91927666]
[1767714037262,0.06019958,3268.0,3266.9,0.794]
[1767714037658,3.98129676,3268.4,3267.0,0.794]
[1767714037859,2.61984011,3268.4,3267.0,2.19176307]
[1767714038194,2.61984011,3268.4,3267.1,0.21917631]
[1767714038195,5.67952472,3268.4,3267.1,0.21917631]
[1767714038796,6.12101482,3268.5,3267.1,0.21917631]
[1767714039160,7.48247147,3268.5,3267.1,0.21917631]
[1767714039396,7.48247147,3268.5,3266.7,0.794]
[1767714039397,1.36145665,3268.4,3266.7,0.794]
[1767714039584,1.36145665,3268.4,3266.5,4.4591347]
[1767714039903,1.36145665,3268.4,3266.5,1.39776307]
[1767714040254,1.36145665,3268.4,3266.7,3.06119265]
[1767714040584,1.36145665,3268.4,3266.5,1.39776307]
[1767714040585,1.36145665,3268.2,3266.8,0.30611927]
[1767714040755,1.36145665,3268.2,3266.6,3.06127928]
[1767714040952,6.11976376,3268.1,3266.6,6.12256624]
[1767714041155,0.799,3268.0,3266.6,3.06127928]
[1767714042794,0.799,3268.0,3266.5,3.06136526]
[1767714043110,2.16045665,3268.0,3266.4,3.0614155]
[1767714043256,7.25414853,3267.9,3266.5,0.30614155]
[1767714043603,7.25414853,3267.9,3266.2,3.85561842]
[1767714043604,7.48159495,3267.9,3266.2,3.85561842]
[1767714044085,7.48159495,3267.9,3266.2,6.12328029]
[1767714044293,7.48159495,3267.9,3266.3,0.03061568]
[1767714044457,0.8280595,3267.8,3266.4,0.6153896]
[1767714044660,1.36145665,3267.7,3266.4,0.6153896]
[1767714044861,1.36145665,3267.7,3266.1,0.794]
[1767714045288,1.36145665,3267.5,3266.1,0.794]
[1767714045586,0.799,3267.4,3266.1,0.794]
[1767714045906,1.36145665,3267.3,3265.9,0.001]
[1767714046194,1.57750232,3267.2,3265.9,0.001]
[1767714046406,1.36145665,3267.2,3265.9,0.001]
[1767714047308,1.36145665,3267.0,3265.2,4.460336]
[1767714047700,9.18245538,3267.1,3265.2,4.460336]
[1767714047701,1.36145665,3266.9,3265.2,4.460336]
[1767714047890,0.799,3266.8,3265.2,4.460336]